[Event "Titled Tuesday Blitz January 04 2022"]
[White "Sorokin, Aleksey"]
[Black "Panesar Vedant"]
[WhiteFideId "24176460"]
[BlackFideId "35033018"]
[WhiteElo "2476"]
[BlackElo "1971"]
[Result "0-1"]
[Round "05"]
[TimeControl "180+1"]
[Date "2022.01.04"]
[WhiteClock "0:01:04"]
[BlackClock "0:01:28"]

1. e4 {[%clk 0:03:00]}  e5 {[%clk 0:02:59]} 2. Nf3 {[%clk 0:03:00]}  Nc6 {[%clk 0:02:54]} 3. Bb5 {[%clk 0:03:00]}  a6 {[%clk 0:02:55]} 4. Ba4 {[%clk 0:03:00]}  Nf6 {[%clk 0:02:55]} 5. O-O {[%clk 0:03:00]}  b5 {[%clk 0:02:55]} 6. Bb3 {[%clk 0:03:00]}  Bc5 {[%clk 0:02:56]} 7. c3 {[%clk 0:03:00]}  d6 {[%clk 0:02:57]} 8. d4 {[%clk 0:03:00]}  Bb6 {[%clk 0:02:57]} 9. a4 {[%clk 0:03:00]}  Rb8 {[%clk 0:02:58]} 10. a5 {[%clk 0:03:00]}  Ba7 {[%clk 0:02:58]} 11. h3 {[%clk 0:03:00]}  Bb7 {[%clk 0:02:58]} 12. Bg5 {[%clk 0:02:51]}  h6 {[%clk 0:02:55]} 13. Bh4 {[%clk 0:02:34]}  g5 {[%clk 0:02:52]} 14. dxe5 {[%clk 0:02:30]}  dxe5 {[%clk 0:02:27]} 15. Qxd8+ {[%clk 0:02:30]}  Rxd8 {[%clk 0:02:28]} 16. Bg3 {[%clk 0:02:25]}  Nxe4 {[%clk 0:02:28]} 17. Bxe5 {[%clk 0:02:24]}  Nxe5 {[%clk 0:02:18]} 18. Nxe5 {[%clk 0:02:24]}  O-O {[%clk 0:02:19]} 19. Bc2 {[%clk 0:02:09]}  Rfe8 {[%clk 0:02:12]} 20. Bxe4 {[%clk 0:01:52]}  Bxe4 {[%clk 0:02:13]} 21. Ng4 {[%clk 0:01:53]}  Kg7 {[%clk 0:02:09]} 22. Re1 {[%clk 0:01:53]}  h5 {[%clk 0:02:00]} 23. Ne3 {[%clk 0:01:53]}  Kg6 {[%clk 0:01:59]} 24. Nf1 {[%clk 0:01:45]}  Bd3 {[%clk 0:01:52]} 25. Nbd2 {[%clk 0:01:43]}  g4 {[%clk 0:01:48]} 26. hxg4 {[%clk 0:01:42]}  hxg4 {[%clk 0:01:49]} 27. Rxe8 {[%clk 0:01:38]}  Rxe8 {[%clk 0:01:49]} 28. Ng3 {[%clk 0:01:38]}  f5 {[%clk 0:01:45]} 29. Ndf1 {[%clk 0:01:15]}  f4 {[%clk 0:01:44]} 30. Nh1 {[%clk 0:01:15]}  Re2 {[%clk 0:01:33]} 31. Rd1 {[%clk 0:01:14]}  Bc4 {[%clk 0:01:34]} 32. Rd7 {[%clk 0:01:07]}  Re1 {[%clk 0:01:34]} 33. Rxc7 {[%clk 0:01:04]}  g3 {[%clk 0:01:28]} 0-1


[Site "https://www.chess.com"]

[Event "Titled Tuesday Blitz January 04 2022"]
[White "Tasev, Dejan"]
[Black "Kravtsiv, Martyn"]
[WhiteFideId "936618"]
[BlackFideId "14113147"]
[WhiteElo "2253"]
[BlackElo "2694"]
[Result "0-1"]
[Round "05"]
[TimeControl "180+1"]
[Date "2022.01.04"]
[WhiteClock "0:00:04"]
[BlackClock "0:00:29"]

1. e4 {[%clk 0:03:00]}  e5 {[%clk 0:02:59]} 2. Nf3 {[%clk 0:03:00]}  Nc6 {[%clk 0:02:58]} 3. Bc4 {[%clk 0:03:00]}  Nf6 {[%clk 0:02:57]} 4. d3 {[%clk 0:03:00]}  Be7 {[%clk 0:02:55]} 5. Nc3 {[%clk 0:03:00]}  O-O {[%clk 0:02:55]} 6. h3 {[%clk 0:02:59]}  d6 {[%clk 0:02:55]} 7. Be3 {[%clk 0:02:58]}  Na5 {[%clk 0:02:54]} 8. Bb3 {[%clk 0:02:59]}  Kh8 {[%clk 0:02:47]} 9. Qd2 {[%clk 0:02:53]}  a6 {[%clk 0:02:46]} 10. O-O {[%clk 0:02:42]}  c5 {[%clk 0:02:22]} 11. Nh2 {[%clk 0:02:36]}  Nxb3 {[%clk 0:02:19]} 12. axb3 {[%clk 0:02:36]}  Nh5 {[%clk 0:02:19]} 13. Nd5 {[%clk 0:02:25]}  Be6 {[%clk 0:02:18]} 14. Nxe7 {[%clk 0:02:21]}  Qxe7 {[%clk 0:02:19]} 15. f4 {[%clk 0:02:21]}  exf4 {[%clk 0:02:14]} 16. Bxf4 {[%clk 0:02:21]}  d5 {[%clk 0:02:13]} 17. Rae1 {[%clk 0:02:06]}  d4 {[%clk 0:02:11]} 18. Qd1 {[%clk 0:01:59]}  Nxf4 {[%clk 0:02:07]} 19. Rxf4 {[%clk 0:01:59]}  Qg5 {[%clk 0:01:56]} 20. Rf3 {[%clk 0:01:49]}  a5 {[%clk 0:01:54]} 21. Ref1 {[%clk 0:01:44]}  h6 {[%clk 0:01:53]} 22. Qe1 {[%clk 0:01:43]}  a4 {[%clk 0:01:51]} 23. bxa4 {[%clk 0:01:43]}  Rxa4 {[%clk 0:01:51]} 24. Rg3 {[%clk 0:01:32]}  Qh4 {[%clk 0:01:42]} 25. Nf3 {[%clk 0:01:30]}  Qh5 {[%clk 0:01:42]} 26. c3 {[%clk 0:01:14]}  Rfa8 {[%clk 0:01:30]} 27. cxd4 {[%clk 0:01:08]}  cxd4 {[%clk 0:01:31]} 28. Qc1 {[%clk 0:00:53]}  Ra1 {[%clk 0:01:26]} 29. Qc7 {[%clk 0:00:32]}  Rxf1+ {[%clk 0:01:20]} 30. Kxf1 {[%clk 0:00:32]}  Qb5 {[%clk 0:01:20]} 31. Nxd4 {[%clk 0:00:20]}  Qxb2 {[%clk 0:01:20]} 32. Ne2 {[%clk 0:00:18]}  Ra1+ {[%clk 0:00:56]} 33. Kf2 {[%clk 0:00:18]}  Ra2 {[%clk 0:00:56]} 34. Re3 {[%clk 0:00:17]}  Kh7 {[%clk 0:00:52]} 35. Qg3 {[%clk 0:00:14]}  Ra1 {[%clk 0:00:50]} 36. Qf3 {[%clk 0:00:13]}  b5 {[%clk 0:00:46]} 37. d4 {[%clk 0:00:13]}  Bc4 {[%clk 0:00:45]} 38. Qf5+ {[%clk 0:00:12]}  g6 {[%clk 0:00:45]} 39. Qf6 {[%clk 0:00:11]}  Ra7 {[%clk 0:00:40]} 40. h4 {[%clk 0:00:09]}  h5 {[%clk 0:00:39]} 41. g4 {[%clk 0:00:09]}  Ra3 {[%clk 0:00:34]} 42. Qf3 {[%clk 0:00:04]}  Rxe3 {[%clk 0:00:30]} 43. Qxe3 {[%clk 0:00:04]}  hxg4 {[%clk 0:00:29]} 0-1


[Site "https://www.chess.com"]

[Event "Titled Tuesday Blitz January 04 2022"]
[White "Terry, Renato"]
[Black "Sadhwani, Raunak"]
[WhiteFideId "3803457"]
[BlackFideId "35093487"]
[WhiteElo "2577"]
[BlackElo "2616"]
[Result "0-1"]
[Round "05"]
[TimeControl "180+1"]
[Date "2022.01.04"]
[WhiteClock "0:00:12"]
[BlackClock "0:00:25"]

1. e4 {[%clk 0:03:00]}  e5 {[%clk 0:03:00]} 2. Nf3 {[%clk 0:03:01]}  Nc6 {[%clk 0:03:00]} 3. c3 {[%clk 0:03:01]}  d5 {[%clk 0:03:00]} 4. Qa4 {[%clk 0:03:01]}  f6 {[%clk 0:02:52]} 5. d3 {[%clk 0:03:02]}  Be6 {[%clk 0:02:51]} 6. Nbd2 {[%clk 0:03:02]}  Qd7 {[%clk 0:02:51]} 7. Be2 {[%clk 0:03:02]}  Nge7 {[%clk 0:02:47]} 8. Qc2 {[%clk 0:02:46]}  g5 {[%clk 0:02:45]} 9. h4 {[%clk 0:02:39]}  g4 {[%clk 0:02:45]} 10. Nh2 {[%clk 0:02:40]}  h5 {[%clk 0:02:40]} 11. b4 {[%clk 0:02:32]}  d4 {[%clk 0:02:36]} 12. Bb2 {[%clk 0:02:14]}  dxc3 {[%clk 0:02:34]} 13. Bxc3 {[%clk 0:02:15]}  Ng6 {[%clk 0:02:34]} 14. a3 {[%clk 0:02:06]}  Nf4 {[%clk 0:02:23]} 15. g3 {[%clk 0:01:58]}  Nxe2 {[%clk 0:02:20]} 16. Kxe2 {[%clk 0:01:58]}  O-O-O {[%clk 0:02:16]} 17. Rhd1 {[%clk 0:01:49]}  f5 {[%clk 0:02:13]} 18. exf5 {[%clk 0:01:47]}  Bxf5 {[%clk 0:02:14]} 19. Ne4 {[%clk 0:01:47]}  Bh6 {[%clk 0:02:09]} 20. Nf1 {[%clk 0:01:35]}  Rhf8 {[%clk 0:02:08]} 21. Nfd2 {[%clk 0:01:18]}  Qf7 {[%clk 0:01:56]} 22. Ke1 {[%clk 0:00:47]}  Bg6 {[%clk 0:01:37]} 23. b5 {[%clk 0:00:21]}  Nd4 {[%clk 0:01:25]} 24. Bxd4 {[%clk 0:00:21]}  Rxd4 {[%clk 0:01:14]} 25. Nb3 {[%clk 0:00:22]}  Rdd8 {[%clk 0:00:57]} 26. Ra2 {[%clk 0:00:22]}  Qf3 {[%clk 0:00:53]} 27. Qe2 {[%clk 0:00:22]}  Qh1+ {[%clk 0:00:47]} 28. Qf1 {[%clk 0:00:22]}  Qxf1+ {[%clk 0:00:47]} 29. Kxf1 {[%clk 0:00:23]}  Bxe4 {[%clk 0:00:48]} 30. Nc5 {[%clk 0:00:21]}  Bd5 {[%clk 0:00:46]} 31. Rc2 {[%clk 0:00:20]}  b6 {[%clk 0:00:46]} 32. Na6 {[%clk 0:00:20]}  Rd7 {[%clk 0:00:42]} 33. Re1 {[%clk 0:00:20]}  Bg7 {[%clk 0:00:38]} 34. Nb4 {[%clk 0:00:18]}  Bf3 {[%clk 0:00:38]} 35. Rec1 {[%clk 0:00:16]}  e4 {[%clk 0:00:29]} 36. Na6 {[%clk 0:00:14]}  Be5 {[%clk 0:00:26]} 37. d4 {[%clk 0:00:12]}  Bd6 {[%clk 0:00:27]} 38. Rc6 {[%clk 0:00:11]}  e3 {[%clk 0:00:27]} 39. Rxd6 {[%clk 0:00:12]}  Rxd6 {[%clk 0:00:25]} 40. Rxc7+ {[%clk 0:00:12]}  Kd8 {[%clk 0:00:26]} 41. fxe3 {[%clk 0:00:12]}  Bb7+ {[%clk 0:00:25]} 0-1


[Site "https://www.chess.com"]

[Event "Titled Tuesday Blitz January 04 2022"]
[White "Thavandiran, Shiyam"]
[Black "Bellahcene, Bilel"]
[WhiteFideId "2605058"]
[BlackFideId "696358"]
[WhiteElo "2357"]
[BlackElo "2562"]
[Result "0-1"]
[Round "05"]
[TimeControl "180+1"]
[Date "2022.01.04"]
[WhiteClock "0:00:17"]
[BlackClock "0:00:38"]

1. e4 {[%clk 0:03:00]}  c5 {[%clk 0:02:26]} 2. Nf3 {[%clk 0:02:59]}  Nc6 {[%clk 0:02:24]} 3. d4 {[%clk 0:02:58]}  cxd4 {[%clk 0:02:25]} 4. Nxd4 {[%clk 0:02:58]}  Nf6 {[%clk 0:02:26]} 5. Nc3 {[%clk 0:02:58]}  d6 {[%clk 0:02:26]} 6. Bg5 {[%clk 0:02:57]}  e6 {[%clk 0:02:25]} 7. Qd2 {[%clk 0:02:57]}  Be7 {[%clk 0:02:26]} 8. O-O-O {[%clk 0:02:56]}  a6 {[%clk 0:02:25]} 9. f4 {[%clk 0:02:18]}  Bd7 {[%clk 0:02:25]} 10. Kb1 {[%clk 0:02:09]}  b5 {[%clk 0:02:21]} 11. Bxf6 {[%clk 0:01:46]}  Bxf6 {[%clk 0:02:05]} 12. Nxc6 {[%clk 0:01:46]}  Bxc6 {[%clk 0:02:05]} 13. Qxd6 {[%clk 0:01:46]}  Qxd6 {[%clk 0:02:06]} 14. Rxd6 {[%clk 0:01:46]}  Rc8 {[%clk 0:02:05]} 15. e5 {[%clk 0:01:41]}  Be7 {[%clk 0:02:05]} 16. Rd1 {[%clk 0:01:34]}  h5 {[%clk 0:02:06]} 17. a3 {[%clk 0:01:17]}  h4 {[%clk 0:02:05]} 18. h3 {[%clk 0:01:17]}  Bc5 {[%clk 0:02:03]} 19. Bd3 {[%clk 0:01:07]}  Bxg2 {[%clk 0:01:55]} 20. Rh2 {[%clk 0:01:06]}  Bf3 {[%clk 0:01:50]} 21. Rf1 {[%clk 0:01:04]}  Bc6 {[%clk 0:01:50]} 22. f5 {[%clk 0:00:58]}  Ke7 {[%clk 0:01:19]} 23. fxe6 {[%clk 0:00:52]}  fxe6 {[%clk 0:01:18]} 24. Ne2 {[%clk 0:00:33]}  g5 {[%clk 0:01:05]} 25. c3 {[%clk 0:00:28]}  Rcf8 {[%clk 0:00:54]} 26. Rxf8 {[%clk 0:00:21]}  Rxf8 {[%clk 0:00:55]} 27. Kc2 {[%clk 0:00:20]}  Rf2 {[%clk 0:00:39]} 28. Rxf2 {[%clk 0:00:19]}  Bxf2 {[%clk 0:00:40]} 29. Nd4 {[%clk 0:00:18]}  Bxd4 {[%clk 0:00:38]} 30. cxd4 {[%clk 0:00:19]}  g4 {[%clk 0:00:38]} 31. Bf1 {[%clk 0:00:17]}  g3 {[%clk 0:00:38]} 32. Kc3 {[%clk 0:00:17]}  g2 {[%clk 0:00:38]} 33. Bxg2 {[%clk 0:00:17]}  Bxg2 {[%clk 0:00:39]} 34. Kb4 {[%clk 0:00:17]}  Bxh3 {[%clk 0:00:38]} 0-1


[Site "https://www.chess.com"]

[Event "Titled Tuesday Blitz January 04 2022"]
[White "Vovk, Orest"]
[Black "Guseinov, Gadir"]
[WhiteFideId "14113490"]
[BlackFideId "13401378"]
[WhiteElo "2203"]
[BlackElo "2581"]
[Result "1-0"]
[Round "05"]
[TimeControl "180+1"]
[Date "2022.01.04"]
[WhiteClock "0:00:09"]
[BlackClock "0:00:05"]

1. h4 {[%clk 0:03:00]}  c5 {[%clk 0:02:57]} 2. h5 {[%clk 0:03:01]}  h6 {[%clk 0:02:57]} 3. Nc3 {[%clk 0:02:59]}  Nc6 {[%clk 0:02:57]} 4. Nf3 {[%clk 0:02:58]}  Nf6 {[%clk 0:02:57]} 5. e4 {[%clk 0:02:58]}  d6 {[%clk 0:02:57]} 6. Be2 {[%clk 0:02:55]}  e5 {[%clk 0:02:54]} 7. d3 {[%clk 0:02:52]}  Bg4 {[%clk 0:02:53]} 8. Nh4 {[%clk 0:02:38]}  Bxe2 {[%clk 0:02:50]} 9. Qxe2 {[%clk 0:02:36]}  Nd4 {[%clk 0:02:50]} 10. Qd1 {[%clk 0:02:36]}  Qd7 {[%clk 0:02:49]} 11. Ne2 {[%clk 0:02:31]}  Rc8 {[%clk 0:02:45]} 12. c3 {[%clk 0:02:21]}  Nxe2 {[%clk 0:02:44]} 13. Qxe2 {[%clk 0:02:21]}  Qg4 {[%clk 0:02:23]} 14. Qxg4 {[%clk 0:02:14]}  Nxg4 {[%clk 0:02:24]} 15. c4 {[%clk 0:02:12]}  Nf6 {[%clk 0:02:13]} 16. Nf5 {[%clk 0:02:10]}  g6 {[%clk 0:02:02]} 17. hxg6 {[%clk 0:02:06]}  fxg6 {[%clk 0:02:03]} 18. Ne3 {[%clk 0:02:03]}  h5 {[%clk 0:02:03]} 19. Nd5 {[%clk 0:01:57]}  Nxd5 {[%clk 0:02:03]} 20. exd5 {[%clk 0:01:57]}  Be7 {[%clk 0:01:58]} 21. Be3 {[%clk 0:01:54]}  Kd7 {[%clk 0:01:52]} 22. b4 {[%clk 0:01:49]}  cxb4 {[%clk 0:01:50]} 23. Rb1 {[%clk 0:01:48]}  a5 {[%clk 0:01:49]} 24. a3 {[%clk 0:01:48]}  e4 {[%clk 0:01:42]} 25. axb4 {[%clk 0:01:39]}  a4 {[%clk 0:00:59]} 26. Kd2 {[%clk 0:01:35]}  exd3 {[%clk 0:00:58]} 27. Kxd3 {[%clk 0:01:35]}  Bf6 {[%clk 0:00:58]} 28. f3 {[%clk 0:01:20]}  Rhe8 {[%clk 0:00:40]} 29. Rhe1 {[%clk 0:01:17]}  b5 {[%clk 0:00:31]} 30. c5 {[%clk 0:01:15]}  Rxe3+ {[%clk 0:00:23]} 31. Rxe3 {[%clk 0:01:05]}  dxc5 {[%clk 0:00:23]} 32. Re6 {[%clk 0:01:00]}  Bh8 {[%clk 0:00:12]} 33. Rb6 {[%clk 0:00:19]}  c4+ {[%clk 0:00:10]} 34. Kc2 {[%clk 0:00:17]}  Ra8 {[%clk 0:00:09]} 35. Re1 {[%clk 0:00:10]}  a3 {[%clk 0:00:09]} 36. Ree6 {[%clk 0:00:10]}  a2 {[%clk 0:00:06]} 37. Rbd6+ {[%clk 0:00:10]}  Kc7 {[%clk 0:00:06]} 38. Rc6+ {[%clk 0:00:10]}  Kd7 {[%clk 0:00:05]} 39. Rcd6+ {[%clk 0:00:10]}  Kc7 {[%clk 0:00:05]} 40. Rc6+ {[%clk 0:00:10]}  Kb7 {[%clk 0:00:05]} 41. Re7+ {[%clk 0:00:07]}  Kb8 {[%clk 0:00:05]} 42. Re8+ {[%clk 0:00:07]}  Kb7 {[%clk 0:00:05]} 43. Rxa8 {[%clk 0:00:08]}  Kxa8 {[%clk 0:00:05]} 44. Ra6+ {[%clk 0:00:08]}  Kb7 {[%clk 0:00:05]} 45. Rxa2 {[%clk 0:00:09]} 1-0


[Site "https://www.chess.com"]

[Event "Titled Tuesday Blitz January 04 2022"]
[White "Weetik, Vjacheslav"]
[Black "Howell, David W L"]
[WhiteFideId "4153472"]
[BlackFideId "410608"]
[WhiteElo "2469"]
[BlackElo "2559"]
[Result "0-1"]
[Round "05"]
[TimeControl "180+1"]
[Date "2022.01.04"]
[WhiteClock "0:00:02"]
[BlackClock "0:01:08"]

1. e4 {[%clk 0:02:58]}  c5 {[%clk 0:03:00]} 2. Nf3 {[%clk 0:02:58]}  d6 {[%clk 0:03:00]} 3. d4 {[%clk 0:02:56]}  cxd4 {[%clk 0:03:00]} 4. Nxd4 {[%clk 0:02:57]}  Nf6 {[%clk 0:03:01]} 5. Nc3 {[%clk 0:02:57]}  a6 {[%clk 0:03:02]} 6. Be3 {[%clk 0:02:57]}  Ng4 {[%clk 0:03:00]} 7. Bc1 {[%clk 0:02:57]}  Nf6 {[%clk 0:02:59]} 8. Be3 {[%clk 0:02:57]}  g6 {[%clk 0:02:50]} 9. Be2 {[%clk 0:02:46]}  Nbd7 {[%clk 0:02:44]} 10. g4 {[%clk 0:02:44]}  h5 {[%clk 0:02:33]} 11. gxh5 {[%clk 0:02:36]}  Nxh5 {[%clk 0:02:34]} 12. Qd2 {[%clk 0:02:31]}  Nhf6 {[%clk 0:02:29]} 13. O-O-O {[%clk 0:02:09]}  Nc5 {[%clk 0:02:29]} 14. f3 {[%clk 0:01:48]}  Bd7 {[%clk 0:02:28]} 15. Kb1 {[%clk 0:01:46]}  Rc8 {[%clk 0:02:26]} 16. Bg5 {[%clk 0:01:40]}  Bg7 {[%clk 0:02:24]} 17. Qe3 {[%clk 0:01:35]}  Qa5 {[%clk 0:02:06]} 18. Nd5 {[%clk 0:01:25]}  Nxd5 {[%clk 0:01:38]} 19. exd5 {[%clk 0:01:26]}  e6 {[%clk 0:01:38]} 20. dxe6 {[%clk 0:01:19]}  Nxe6 {[%clk 0:01:39]} 21. h4 {[%clk 0:00:49]}  Qe5 {[%clk 0:01:31]} 22. Qxe5 {[%clk 0:00:41]}  dxe5 {[%clk 0:01:32]} 23. Nxe6 {[%clk 0:00:39]}  Bxe6 {[%clk 0:01:33]} 24. Rd6 {[%clk 0:00:37]}  Bf8 {[%clk 0:01:29]} 25. Rd3 {[%clk 0:00:26]}  Be7 {[%clk 0:01:29]} 26. Re1 {[%clk 0:00:23]}  f6 {[%clk 0:01:12]} 27. Bd2 {[%clk 0:00:22]}  Rxh4 {[%clk 0:01:11]} 28. Bc3 {[%clk 0:00:16]}  Kf7 {[%clk 0:01:09]} 29. b3 {[%clk 0:00:08]}  Bf5 {[%clk 0:01:08]} 30. Re3 {[%clk 0:00:06]}  Bc5 {[%clk 0:01:07]} 31. Bc4+ {[%clk 0:00:07]}  Rxc4 {[%clk 0:01:07]} 32. bxc4 {[%clk 0:00:07]}  Bxe3 {[%clk 0:01:07]} 33. Rxe3 {[%clk 0:00:08]}  Rxc4 {[%clk 0:01:07]} 34. Kb2 {[%clk 0:00:08]}  b5 {[%clk 0:01:07]} 35. a3 {[%clk 0:00:06]}  g5 {[%clk 0:01:08]} 36. Kc1 {[%clk 0:00:04]}  Kg6 {[%clk 0:01:08]} 37. Kd2 {[%clk 0:00:04]}  Kh5 {[%clk 0:01:09]} 38. Ke2 {[%clk 0:00:02]}  Bxc2 {[%clk 0:01:08]} 0-1


[Site "https://www.chess.com"]

[Event "Titled Tuesday Blitz January 04 2022"]
[White "Xiong, Jeffery"]
[Black "Zhigalko, Sergei"]
[WhiteFideId "2047640"]
[BlackFideId "13502956"]
[WhiteElo "2727"]
[BlackElo "2662"]
[Result "1-0"]
[Round "05"]
[TimeControl "180+1"]
[Date "2022.01.04"]
[WhiteClock "0:00:11"]
[BlackClock "0:00:02"]

1. d4 {[%clk 0:03:00]}  Nf6 {[%clk 0:02:59]} 2. c4 {[%clk 0:03:01]}  e6 {[%clk 0:03:00]} 3. Nf3 {[%clk 0:03:01]}  b6 {[%clk 0:03:00]} 4. g3 {[%clk 0:03:00]}  Ba6 {[%clk 0:03:00]} 5. Nbd2 {[%clk 0:02:57]}  Bb4 {[%clk 0:03:00]} 6. Qc2 {[%clk 0:02:56]}  Bb7 {[%clk 0:02:59]} 7. Bg2 {[%clk 0:02:55]}  Be4 {[%clk 0:02:59]} 8. Qd1 {[%clk 0:02:55]}  O-O {[%clk 0:02:59]} 9. O-O {[%clk 0:02:55]}  Bxd2 {[%clk 0:02:59]} 10. Bxd2 {[%clk 0:02:56]}  d6 {[%clk 0:03:00]} 11. Re1 {[%clk 0:02:55]}  Nbd7 {[%clk 0:03:00]} 12. Bc3 {[%clk 0:02:53]}  a5 {[%clk 0:02:59]} 13. Bh3 {[%clk 0:02:53]}  Re8 {[%clk 0:02:47]} 14. Nd2 {[%clk 0:02:53]}  Bb7 {[%clk 0:02:47]} 15. e4 {[%clk 0:02:52]}  e5 {[%clk 0:02:47]} 16. Qc2 {[%clk 0:02:36]}  exd4 {[%clk 0:02:14]} 17. Bxd4 {[%clk 0:02:37]}  Ne5 {[%clk 0:02:14]} 18. Rad1 {[%clk 0:01:57]}  Nc6 {[%clk 0:01:25]} 19. Bc3 {[%clk 0:01:57]}  Nb4 {[%clk 0:01:23]} 20. Qb1 {[%clk 0:01:56]}  Nd7 {[%clk 0:01:22]} 21. a3 {[%clk 0:01:54]}  Nc6 {[%clk 0:01:23]} 22. b4 {[%clk 0:01:54]}  axb4 {[%clk 0:01:23]} 23. axb4 {[%clk 0:01:55]}  Qe7 {[%clk 0:01:02]} 24. Qb2 {[%clk 0:01:51]}  f6 {[%clk 0:01:01]} 25. f4 {[%clk 0:01:41]}  Nf8 {[%clk 0:00:57]} 26. Nf1 {[%clk 0:01:41]}  Qf7 {[%clk 0:00:56]} 27. Bg2 {[%clk 0:01:11]}  Nd8 {[%clk 0:00:33]} 28. c5 {[%clk 0:00:58]}  Ra2 {[%clk 0:00:29]} 29. Qb1 {[%clk 0:00:59]}  Rxg2+ {[%clk 0:00:19]} 30. Kxg2 {[%clk 0:01:00]}  f5 {[%clk 0:00:16]} 31. cxd6 {[%clk 0:00:46]}  cxd6 {[%clk 0:00:15]} 32. Kg1 {[%clk 0:00:44]}  Bxe4 {[%clk 0:00:10]} 33. Qb2 {[%clk 0:00:44]}  d5 {[%clk 0:00:08]} 34. Bd4 {[%clk 0:00:36]}  Qh5 {[%clk 0:00:07]} 35. Qe2 {[%clk 0:00:31]}  Qg6 {[%clk 0:00:06]} 36. Ne3 {[%clk 0:00:28]}  Nde6 {[%clk 0:00:06]} 37. Be5 {[%clk 0:00:26]}  d4 {[%clk 0:00:06]} 38. Bxd4 {[%clk 0:00:19]}  Nxf4 {[%clk 0:00:06]} 39. Qf1 {[%clk 0:00:19]}  Nh5 {[%clk 0:00:03]} 40. Ng2 {[%clk 0:00:18]}  Ne6 {[%clk 0:00:03]} 41. Be3 {[%clk 0:00:17]}  b5 {[%clk 0:00:03]} 42. Nh4 {[%clk 0:00:17]}  Qf6 {[%clk 0:00:03]} 43. Ng2 {[%clk 0:00:16]}  Rf8 {[%clk 0:00:02]} 44. Bc5 {[%clk 0:00:16]}  Ng5 {[%clk 0:00:02]} 45. Bxf8 {[%clk 0:00:10]}  Nh3+ {[%clk 0:00:02]} 46. Kh1 {[%clk 0:00:11]} 1-0


[Site "https://www.chess.com"]

[Event "Titled Tuesday Blitz January 04 2022"]
[White "Aghasiyev, Kamal"]
[Black "Nakamura, Hikaru"]
[WhiteFideId "13402854"]
[BlackFideId "2016192"]
[WhiteElo "2210"]
[BlackElo "2850"]
[Result "0-1"]
[Round "06"]
[TimeControl "180+1"]
[Date "2022.01.04"]
[WhiteClock "0:00:05"]
[BlackClock "0:00:41"]

1. d4 {[%clk 0:02:59]}  Nf6 {[%clk 0:02:56]} 2. c4 {[%clk 0:02:59]}  g6 {[%clk 0:02:53]} 3. Nc3 {[%clk 0:02:59]}  Bg7 {[%clk 0:02:53]} 4. e4 {[%clk 0:02:59]}  d6 {[%clk 0:02:54]} 5. Be2 {[%clk 0:02:59]}  O-O {[%clk 0:02:54]} 6. Bg5 {[%clk 0:02:59]}  c5 {[%clk 0:02:53]} 7. d5 {[%clk 0:02:57]}  a6 {[%clk 0:02:48]} 8. a4 {[%clk 0:02:53]}  e6 {[%clk 0:02:48]} 9. Nf3 {[%clk 0:02:50]}  exd5 {[%clk 0:02:49]} 10. cxd5 {[%clk 0:02:40]}  h6 {[%clk 0:02:44]} 11. Bf4 {[%clk 0:02:34]}  Qe7 {[%clk 0:02:34]} 12. Nd2 {[%clk 0:02:32]}  Nbd7 {[%clk 0:02:34]} 13. O-O {[%clk 0:02:29]}  Ne8 {[%clk 0:02:30]} 14. Nc4 {[%clk 0:02:21]}  Ne5 {[%clk 0:02:30]} 15. Nb6 {[%clk 0:02:14]}  Rb8 {[%clk 0:02:30]} 16. Bg3 {[%clk 0:02:12]}  g5 {[%clk 0:02:27]} 17. Qc2 {[%clk 0:01:58]}  Nf6 {[%clk 0:02:14]} 18. Nd1 {[%clk 0:01:49]}  Ng6 {[%clk 0:02:03]} 19. Bf3 {[%clk 0:01:26]}  g4 {[%clk 0:01:55]} 20. Be2 {[%clk 0:01:22]}  Nxe4 {[%clk 0:01:48]} 21. Nxc8 {[%clk 0:01:17]}  Rbxc8 {[%clk 0:01:49]} 22. Bxg4 {[%clk 0:01:18]}  f5 {[%clk 0:01:49]} 23. Bf3 {[%clk 0:01:13]}  Nxg3 {[%clk 0:01:46]} 24. hxg3 {[%clk 0:01:12]}  Bd4 {[%clk 0:01:46]} 25. Ra3 {[%clk 0:01:08]}  Qg5 {[%clk 0:01:41]} 26. Rb3 {[%clk 0:00:58]}  Rc7 {[%clk 0:01:28]} 27. Rb6 {[%clk 0:00:51]}  Ne5 {[%clk 0:01:26]} 28. Be2 {[%clk 0:00:44]}  Qxg3 {[%clk 0:01:17]} 29. Qb3 {[%clk 0:00:26]}  Qg6 {[%clk 0:01:14]} 30. Qh3 {[%clk 0:00:20]}  f4 {[%clk 0:01:10]} 31. Qh5 {[%clk 0:00:16]}  Qg7 {[%clk 0:00:58]} 32. Bf3 {[%clk 0:00:11]}  Rd7 {[%clk 0:00:51]} 33. Nc3 {[%clk 0:00:12]}  c4 {[%clk 0:00:50]} 34. Rb4 {[%clk 0:00:10]}  Bc5 {[%clk 0:00:50]} 35. Na2 {[%clk 0:00:06]}  Rdf7 {[%clk 0:00:43]} 36. Be4 {[%clk 0:00:04]}  f3 {[%clk 0:00:40]} 37. g3 {[%clk 0:00:04]}  Qxg3+ {[%clk 0:00:40]} 38. Kh1 {[%clk 0:00:05]}  Qg2# {[%clk 0:00:41]} 0-1


[Site "https://www.chess.com"]